bitfinex/quotes_BTCUSD_20250525
["timestamp","ask_amount","ask_price","bid_price","bid_amount"]
[1748144001709,0.4708473,107970.0,107960.0,2.44726625]
[1748144001909,0.4708473,107970.0,107960.0,2.89626787]
[1748144004035,0.5478473,107970.0,107960.0,2.89626787]
[1748144004874,0.5478473,107970.0,107960.0,2.59506625]
[1748144005065,0.5478473,107970.0,107960.0,2.89626787]
[1748144005480,0.5478473,107970.0,107960.0,2.53719325]
[1748144005893,0.5478473,107970.0,107960.0,2.83839487]
[1748144008233,0.5478473,107970.0,107960.0,2.53719325]
[1748144008477,0.5478473,107970.0,107960.0,2.83839487]
[1748144008683,0.86358977,107970.0,107960.0,2.38943325]
[1748144008904,0.78658977,107970.0,107960.0,0.466818]
[1748144009123,0.78658977,107970.0,107960.0,0.64588]
[1748144010157,0.78658977,107970.0,107960.0,0.64488]
[1748144011539,0.77134892,107970.0,107960.0,0.16452]
[1748144011747,0.78588977,107970.0,107960.0,0.16452]
[1748144012393,0.05364085,107960.0,107930.0,0.30120162]
[1748144012609,0.0199,107940.0,107930.0,0.30120162]
[1748144012853,0.10944556,107940.0,107930.0,5.10940362]
[1748144013062,0.12864556,107940.0,107930.0,5.10940362]
[1748144013277,0.12864556,107940.0,107930.0,4.96160362]
[1748144013506,0.46864556,107940.0,107930.0,2.923314]
[1748144013723,0.46864556,107940.0,107930.0,2.812072]
[1748144014857,0.46864556,107940.0,107930.0,2.816072]
[1748144015059,0.46864556,107940.0,107930.0,2.812072]
[1748144015270,0.46864556,107940.0,107930.0,2.814072]
[1748144017279,0.46864556,107940.0,107930.0,3.11527362]
[1748144017479,0.46864556,107940.0,107930.0,3.44783362]
[1748144020200,0.46864556,107940.0,107930.0,3.146632]
[1748144020523,0.46864556,107940.0,107930.0,3.44783362]
[1748144022295,0.46864556,107940.0,107930.0,3.146632]
[1748144025689,0.46864556,107940.0,107930.0,3.48141791]
[1748144026701,0.46864556,107940.0,107930.0,3.16909791]
[1748144026961,0.46864556,107940.0,107930.0,3.48149791]
[1748144028502,0.46864556,107940.0,107930.0,3.146712]
[1748144028713,0.46864556,107940.0,107930.0,3.48149791]
[1748144035690,0.46864556,107940.0,107930.0,2.834312]
[1748144035900,0.46864556,107940.0,107930.0,1.13940591]
[1748144036419,0.46864556,107940.0,107930.0,0.80462]
[1748144036665,0.46864556,107940.0,107930.0,0.80262]
[1748144036870,0.46864556,107940.0,107930.0,0.80362]
[1748144037153,0.46864556,107940.0,107930.0,1.13840591]
[1748144038834,0.46864556,107940.0,107930.0,0.80362]
[1748144039045,0.46864556,107940.0,107930.0,1.13840591]
[1748144043901,0.42954556,107940.0,107930.0,1.13840591]
[1748144044503,0.44824556,107940.0,107930.0,1.13840591]
[1748144045308,0.50654556,107940.0,107930.0,1.13840591]
[1748144045849,0.54564556,107940.0,107930.0,0.80362]
[1748144046061,0.54564556,107940.0,107930.0,1.13840591]
[1748144050219,0.54564556,107940.0,107930.0,0.80362]
[1748144050431,0.54564556,107940.0,107930.0,1.13840591]
[1748144053489,0.52524556,107940.0,107930.0,1.13840591]
[1748144054305,0.52524556,107940.0,107930.0,0.80362]
[1748144054569,0.52524556,107940.0,107930.0,1.13840591]
[1748144055754,0.54384556,107940.0,107930.0,1.13840591]
[1748144056861,0.50654556,107940.0,107930.0,1.47319182]
[1748144057077,0.52634556,107940.0,107930.0,1.47319182]
[1748144057687,0.54494556,107940.0,107930.0,1.47319182]
[1748144061367,0.54494556,107940.0,107930.0,1.32535182]
[1748144061508,0.54494556,107940.0,107930.0,1.47319182]
[1748144064174,0.54494556,107940.0,107930.0,1.13840591]
[1748144064849,0.54494556,107940.0,107930.0,0.99056591]
[1748144064975,0.54494556,107940.0,107930.0,1.13840591]
[1748144066748,0.54494556,107940.0,107930.0,1.47319182]
[1748144066959,0.52634556,107940.0,107930.0,1.47319182]
[1748144068857,0.50654556,107940.0,107930.0,1.47319182]
[1748144069070,0.50654556,107940.0,107930.0,1.49179182]
[1748144069694,0.50654556,107940.0,107930.0,1.47319182]
[1748144071793,0.50654556,107940.0,107930.0,1.32535182]
[1748144071972,0.50654556,107940.0,107930.0,1.47319182]
[1748144073690,0.50654556,107940.0,107930.0,1.84637773]
[1748144073691,0.16654556,107940.0,107930.0,1.84637773]
[1748144073914,0.08954556,107940.0,107930.0,1.84637773]
[1748144074138,0.01528383,107970.0,107940.0,0.0384]
[1748144074365,0.42954556,107960.0,107950.0,4.682122]
[1748144074588,0.42954556,107960.0,107950.0,4.849242]
[1748144075521,0.08954556,107960.0,107950.0,5.51881382]
[1748144075738,0.09154556,107960.0,107950.0,5.51881382]
[1748144077450,0.08954556,107960.0,107950.0,5.51881382]
[1748144077664,0.08954556,107960.0,107950.0,5.51981382]
[1748144080075,0.08954556,107960.0,107950.0,4.702402]
[1748144080286,0.08954556,107960.0,107950.0,5.51981382]
[1748144081119,0.08954556,107960.0,107950.0,5.12506982]
[1748144081560,0.08954556,107960.0,107950.0,3.96651791]
[1748144081773,0.08954556,107960.0,107950.0,4.30130382]
[1748144082199,0.08954556,107960.0,107950.0,4.23339182]
[1748144083051,0.08954556,107960.0,107950.0,4.21499182]
[1748144084181,0.08954556,107960.0,107950.0,4.22135182]
[1748144088765,0.08954556,107960.0,107950.0,4.24065182]
[1748144089175,0.08954556,107960.0,107950.0,3.57108]
[1748144090349,0.08954556,107960.0,107950.0,3.55178]
[1748144093728,0.08954556,107960.0,107950.0,3.15416929]
[1748144094034,0.08954556,107960.0,107950.0,3.48672929]
[1748144094957,0.08954556,107960.0,107950.0,3.63452929]
[1748144097116,0.08954556,107960.0,107950.0,3.765899]
[1748144098855,0.46834556,107960.0,107950.0,0.6548]
[1748144099072,0.48288641,107960.0,107950.0,0.507]
[1748144099289,0.55681331,107960.0,107950.0,0.507]
[1748144099507,0.55681331,107960.0,107950.0,0.6548]
[1748144101927,0.48288641,107960.0,107950.0,0.6548]
[1748144102715,0.48488641,107960.0,107950.0,0.6548]
[1748144107450,0.48488641,107960.0,107950.0,0.507]
[1748144107670,0.48488641,107960.0,107950.0,0.65484]
[1748144114387,0.48488641,107960.0,107950.0,0.33256]
[1748144114541,0.48488641,107960.0,107950.0,0.50268]
[1748144114727,0.48488641,107960.0,107950.0,0.65052]
[1748144115523,0.44608641,107960.0,107950.0,0.17012]
[1748144115993,0.48648641,107960.0,107950.0,0.17012]
[1748144116663,0.48648641,107960.0,107950.0,0.31796]
[1748144117434,0.48648641,107960.0,107950.0,0.65056]
[1748144118608,0.48448641,107960.0,107950.0,0.65056]
[1748144118951,0.48748641,107960.0,107950.0,0.65056]
[1748144121770,0.82228498,107960.0,107950.0,0.65056]
[1748144130335,0.82228498,107960.0,107950.0,0.68108297]
[1748144132446,0.82228498,107960.0,107950.0,0.65056]
[1748144135435,0.82228498,107960.0,107950.0,0.68059438]
[1748144136337,0.82228498,107960.0,107950.0,0.65056]
[1748144138808,0.82228498,107960.0,107950.0,0.67997088]
[1748144141772,0.48748641,107960.0,107950.0,0.67997088]
[1748144141976,0.82228498,107960.0,107950.0,0.67997088]
[1748144142631,0.48748641,107960.0,107950.0,0.67997088]
[1748144142835,0.44708641,107960.0,107950.0,0.67997088]
[1748144143050,0.46628641,107960.0,107950.0,0.67997088]
[1748144144287,0.46328641,107960.0,107950.0,0.67997088]
[1748144144585,0.46528641,107960.0,107950.0,0.67997088]
[1748144146020,0.05,107920.0,107860.0,0.12501272]
[1748144146223,0.05,107920.0,107900.0,0.0146733]
[1748144146419,0.05,107920.0,107910.0,4.412392]
[1748144146779,0.05,107920.0,107910.0,4.4568492]
[1748144147175,0.05,107920.0,107910.0,4.60473937]
[1748144147636,0.05,107920.0,107910.0,4.93737937]
[1748144147848,0.051,107920.0,107910.0,4.93737937]
[1748144148213,0.05,107920.0,107910.0,4.93737937]
[1748144148612,0.05,107920.0,107910.0,4.94137937]
[1748144149116,0.05,107920.0,107910.0,4.97117937]
[1748144149645,0.04192,107920.0,107910.0,4.97117937]
[1748144149843,0.04192,107920.0,107910.0,4.94137937]
[1748144150158,0.04192,107920.0,107910.0,4.97117937]
[1748144150613,0.04192,107920.0,107910.0,4.94137937]
[1748144151356,0.04192,107920.0,107910.0,4.97117937]
[1748144152045,0.04192,107920.0,107910.0,4.97113937]
[1748144154887,0.04192,107920.0,107910.0,4.94073335]
[1748144157336,0.04192,107920.0,107910.0,4.79289335]
[1748144157548,0.04192,107920.0,107910.0,4.94073335]
[1748144159940,0.04158705,107920.0,107910.0,4.94073335]
[1748144161168,0.04158705,107920.0,107910.0,4.79289335]
[1748144161285,0.04158705,107920.0,107910.0,4.94073335]
[1748144168407,0.04158705,107920.0,107910.0,4.79289335]
[1748144168610,0.04158705,107920.0,107910.0,4.94073335]
[1748144170630,0.11551395,107920.0,107910.0,4.79289335]
[1748144170849,0.04158705,107920.0,107910.0,3.34712035]
[1748144171067,0.04158705,107920.0,107910.0,3.18138035]
[1748144171288,0.05158705,107920.0,107910.0,3.32922035]
[1748144171982,0.05158705,107920.0,107910.0,3.33402575]
[1748144172182,0.09198705,107920.0,107910.0,3.33602575]
[1748144172478,0.07208705,107920.0,107910.0,3.33602575]
[1748144174386,0.05158705,107920.0,107910.0,3.33602575]
[1748144175974,0.05158705,107920.0,107910.0,3.3470317]
[1748144176775,0.07108705,107920.0,107910.0,3.3470317]
[1748144179660,0.07099485,107920.0,107910.0,3.3470317]
[1748144179995,0.07099485,107920.0,107910.0,3.0329517]
[1748144180214,0.09159485,107920.0,107910.0,3.3443917]
[1748144180844,0.09159485,107920.0,107910.0,3.37383467]
[1748144181597,0.09159485,107920.0,107910.0,3.06239467]
[1748144181807,0.09159485,107920.0,107910.0,3.37383467]
[1748144182052,0.09159485,107920.0,107910.0,3.06239467]
[1748144182257,0.09159485,107920.0,107910.0,3.37383467]
[1748144182557,0.18114041,107920.0,107910.0,3.06239467]
[1748144182764,0.46964556,107920.0,107910.0,3.37383467]
[1748144183190,0.46964556,107920.0,107910.0,1.16449767]
[1748144183402,0.46964556,107920.0,107910.0,0.72250167]
[1748144183619,0.48418641,107920.0,107910.0,0.84528454]
[1748144185059,0.48418641,107920.0,107910.0,0.83447914]
[1748144185511,0.48418641,107920.0,107910.0,0.83547914]
[1748144188178,0.46964556,107920.0,107910.0,0.83547914]
[1748144191166,0.01,107920.0,107910.0,0.83547914]
[1748144191363,0.01,107920.0,107910.0,0.86727914]
[1748144191563,0.1172,107940.0,107910.0,0.86727914]
[1748144191794,0.04149485,107940.0,107920.0,4.2484281]
[1748144192161,0.41493714,107960.0,107930.0,4.425792]
[1748144192361,0.41493714,107960.0,107940.0,4.56934776]
[1748144192362,0.1644827,107960.0,107940.0,4.56934776]
[1748144192576,0.1644827,107960.0,107950.0,1.858328]
[1748144193884,0.23891134,107960.0,107950.0,0.291548]
[1748144194092,0.0402,107950.0,107940.0,0.32092]
[1748144194298,0.46974556,107950.0,107940.0,0.598316]
[1748144194528,0.46974556,107950.0,107940.0,0.563651]
[1748144194732,0.46974556,107950.0,107940.0,0.470269]
[1748144195532,0.04149485,107930.0,107900.0,0.0002201]
[1748144195734,0.06089485,107930.0,107900.0,0.10866566]
[1748144195908,0.06089485,107930.0,107910.0,4.109097]
[1748144196113,0.04149485,107920.0,107910.0,4.14739193]
[1748144196481,0.04149485,107920.0,107910.0,4.15616827]
[1748144196700,0.04149485,107920.0,107910.0,4.30400827]
[1748144197187,0.04149485,107920.0,107910.0,4.30600827]
[1748144197359,0.04149485,107920.0,107910.0,4.30405844]
[1748144197585,0.04149485,107920.0,107910.0,4.80973844]
[1748144197723,0.04149485,107920.0,107910.0,4.81173844]
[1748144201267,0.0195,107940.0,107910.0,4.32495844]
[1748144201492,0.42954556,107950.0,107920.0,4.13031302]
[1748144201493,0.10904556,107950.0,107920.0,4.13031302]
[1748144201697,0.3595,107950.0,107930.0,4.127997]
[1748144201901,0.3595,107950.0,107940.0,4.25925283]
[1748144202129,0.3595,107950.0,107940.0,4.256937]
[1748144202333,0.06099485,107950.0,107940.0,4.256937]
[1748144202563,0.0195,107950.0,107940.0,4.256937]
[1748144202767,0.07463714,107960.0,107940.0,4.256937]
[1748144202969,0.5041827,107960.0,107950.0,0.00231565]
[1748144203173,0.5041827,107960.0,107950.0,4.11141265]
[1748144203378,0.5041827,107960.0,107950.0,4.109097]
[1748144204093,0.50468444,107960.0,107950.0,4.109097]
[1748144205150,0.50468444,107960.0,107950.0,1.823347]
[1748144207676,0.50468444,107960.0,107950.0,2.328947]
[1748144209816,0.50468444,107960.0,107950.0,2.155947]
[1748144210060,0.50468444,107960.0,107950.0,0.762071]
[1748144210554,0.51922529,107960.0,107950.0,0.441231]
[1748144210830,0.51922529,107960.0,107950.0,0.65344]
[1748144211016,0.52122529,107960.0,107950.0,0.65344]
[1748144211431,0.52122529,107960.0,107950.0,0.758585]
[1748144212137,0.52122529,107960.0,107950.0,0.65344]
[1748144212321,0.52122529,107960.0,107950.0,0.781318]
[1748144213271,0.48648815,107960.0,107950.0,0.781318]
[1748144213676,0.48648815,107960.0,107950.0,0.65344]
[1748144214808,0.48648815,107960.0,107950.0,0.3326]
[1748144214989,0.48648815,107960.0,107950.0,0.65408]
[1748144219071,0.48648815,107960.0,107950.0,0.3326]
[1748144219282,1.18318815,107960.0,107950.0,0.50628]
[1748144219510,1.18318815,107960.0,107950.0,0.65412]
[1748144221727,1.33569999,107960.0,107950.0,0.50628]
[1748144221931,0.0405,107920.0,107910.0,0.03829493]
[1748144222137,0.47004556,107920.0,107910.0,2.39424793]
[1748144222307,0.47004556,107920.0,107910.0,2.355953]
[1748144223126,0.47004556,107920.0,107910.0,2.39402616]
[1748144223303,0.47004556,107920.0,107910.0,2.39607633]
[1748144227556,0.47004556,107920.0,107910.0,2.72871633]
[1748144228125,0.47004556,107920.0,107910.0,0.95894333]
[1748144228411,0.50474556,107920.0,107910.0,0.69428333]
[1748144228554,0.50474556,107920.0,107910.0,1.03149633]
[1748144237141,0.50474556,107920.0,107910.0,1.03153633]
[1748144237838,0.50474556,107920.0,107910.0,0.54483902]
[1748144238049,0.50474556,107920.0,107910.0,1.700212]
[1748144238495,0.50474556,107920.0,107910.0,1.62415]
[1748144240166,0.48474556,107920.0,107910.0,1.62415]
[1748144241500,0.50384556,107920.0,107910.0,1.62415]
[1748144241731,0.50384556,107920.0,107910.0,1.66241701]
[1748144242213,0.46424556,107920.0,107910.0,1.68061701]
[1748144242454,0.0347,107920.0,107910.0,1.68061701]
[1748144242675,0.07619485,107920.0,107910.0,1.68061701]
[1748144242908,0.0191,107940.0,107910.0,1.50689701]
[1748144243115,0.10864556,107940.0,107920.0,4.01564008]
[1748144243315,0.10864556,107940.0,107930.0,4.143004]
[1748144243672,0.44864556,107940.0,107930.0,4.143004]
[1748144243887,0.44864556,107940.0,107930.0,4.085279]
[1748144244101,0.44864556,107940.0,107930.0,3.860977]
[1748144245279,0.45064556,107940.0,107930.0,3.860977]
[1748144247531,0.45064556,107940.0,107930.0,4.367297]
[1748144248547,0.04149485,107910.0,107900.0,0.04704104]
[1748144248777,0.04149485,107910.0,107900.0,4.01669204]
[1748144248988,0.42954556,107910.0,107900.0,4.01669204]
[1748144249187,0.44854556,107910.0,107900.0,3.98311704]
[1748144249622,0.46864556,107910.0,107900.0,3.98311704]
[1748144249826,0.46864556,107910.0,107900.0,3.98511704]
[1748144250078,0.46864556,107910.0,107900.0,3.97923568]
[1748144253518,0.44854556,107910.0,107900.0,3.97044374]
[1748144254145,0.44854556,107910.0,107900.0,3.97048374]
[1748144259375,0.44854556,107910.0,107900.0,3.97927694]
[1748144264497,0.46934556,107910.0,107900.0,3.97927694]
[1748144266492,0.46934556,107910.0,107900.0,3.83139694]
[1748144266702,0.46934556,107910.0,107900.0,3.97927694]
[1748144267250,0.46934556,107910.0,107900.0,3.97727694]
[1748144271095,0.46934556,107910.0,107900.0,4.0145405]
[1748144273142,0.359,107910.0,107900.0,4.0145405]
[1748144274447,0.3789,107910.0,107900.0,4.0145405]
[1748144278321,0.46844556,107910.0,107900.0,1.1910185]
[1748144278540,0.46844556,107910.0,107900.0,1.1180665]
[1748144279887,0.46844556,107910.0,107900.0,0.8013865]
[1748144280100,0.46844556,107910.0,107900.0,1.1092733]
[1748144283969,0.50314556,107910.0,107900.0,0.7925933]
[1748144284178,0.50314556,107910.0,107900.0,1.1092733]
[1748144297089,0.50314556,107910.0,107900.0,0.90915288]
[1748144298118,0.50314556,107910.0,107900.0,0.94645974]
[1748144298322,0.50314556,107910.0,107900.0,0.96018498]
[1748144301625,0.48298641,107910.0,107900.0,0.5525521]
[1748144301838,0.48298641,107910.0,107900.0,0.68670686]
[1748144302932,0.48298641,107910.0,107900.0,1.75600086]
[1748144304658,0.48498641,107910.0,107900.0,1.75600086]
[1748144305597,0.47044556,107910.0,107900.0,1.75600086]
[1748144305852,0.43154556,107910.0,107900.0,1.75600086]
[1748144306272,0.09154556,107910.0,107900.0,1.75600086]
[1748144306709,0.43154556,107910.0,107900.0,1.76481362]
[1748144307211,0.44934556,107910.0,107900.0,1.76481362]
[1748144313105,0.46974556,107910.0,107900.0,1.76465362]
[1748144313485,0.44934556,107910.0,107900.0,1.76465362]
[1748144314308,0.44864556,107910.0,107900.0,1.76465362]
[1748144318922,0.42954556,107910.0,107900.0,1.76465362]
[1748144319132,0.44864556,107910.0,107900.0,1.76465362]
[1748144321849,0.07619485,107920.0,107900.0,1.78315362]
[1748144322056,0.03482638,107930.0,107910.0,3.86717124]
[1748144322257,0.03482638,107920.0,107910.0,0.0185]
[1748144322377,0.03482638,107920.0,107910.0,0.16869613]
[1748144322620,0.36479248,107930.0,107920.0,0.0185]
[1748144322828,0.02479248,107930.0,107920.0,3.864855]
[1748144323248,0.02099298,107940.0,107920.0,3.864855]
[1748144323485,0.02099298,107940.0,107930.0,4.16519093]
[1748144323618,9.298e-05,107940.0,107930.0,4.162875]
[1748144323818,9.298e-05,107940.0,107930.0,4.19018776]
[1748144324871,0.02488546,107940.0,107930.0,4.181375]
[1748144327914,0.02488546,107940.0,107930.0,4.19014365]
[1748144329754,0.02488546,107940.0,107930.0,4.04226365]
[1748144330025,0.06468546,107940.0,107930.0,3.85512365]
[1748144330207,0.46943854,107940.0,107930.0,2.36205365]
[1748144330991,0.46943854,107940.0,107930.0,2.353285]
[1748144331985,0.46943854,107940.0,107930.0,2.216429]
[1748144332192,0.46943854,107940.0,107930.0,2.200955]
[1748144332982,0.46943854,107940.0,107930.0,2.533595]
[1748144336051,0.46943854,107940.0,107930.0,2.487459]
[1748144338849,0.46943854,107940.0,107930.0,2.171019]
[1748144339066,0.46943854,107940.0,107930.0,2.484659]
[1748144340252,0.46943854,107940.0,107930.0,2.171019]
[1748144340449,0.46943854,107940.0,107930.0,2.484659]
[1748144348836,0.35959298,107940.0,107930.0,2.484659]
[1748144349036,9.298e-05,107940.0,107930.0,2.503159]
[1748144349240,0.02488546,107940.0,107930.0,2.503159]
[1748144349822,0.02488546,107940.0,107930.0,2.51195382]
[1748144351262,0.02488546,107940.0,107930.0,2.31898184]
[1748144352269,9.298e-05,107940.0,107930.0,2.31898184]
[1748144352469,0.02488546,107940.0,107930.0,2.31898184]
[1748144352667,9.298e-05,107940.0,107930.0,2.31998184]
[1748144352919,0.02488546,107940.0,107930.0,2.31998184]
[1748144353130,9.298e-05,107940.0,107930.0,2.31998184]
[1748144353624,0.02488546,107940.0,107930.0,2.31998184]
[1748144354255,0.02488546,107940.0,107930.0,1.98738184]
[1748144356227,0.02488546,107940.0,107930.0,1.82158184]
[1748144357747,0.02488546,107940.0,107930.0,2.31994184]
[1748144357985,0.02488546,107940.0,107930.0,2.30144184]
[1748144358165,0.04388546,107940.0,107930.0,2.30144184]
[1748144359274,0.02488546,107940.0,107930.0,2.30144184]
[1748144359706,0.04388546,107940.0,107930.0,2.30144184]
[1748144360102,0.06408546,107940.0,107930.0,1.65524184]
[1748144360377,0.06408546,107940.0,107930.0,1.96884184]
[1748144360531,0.06408546,107940.0,107930.0,1.65524184]
[1748144360735,0.06408546,107940.0,107930.0,1.96884184]
[1748144361227,0.06408546,107940.0,107930.0,1.65524184]
[1748144361433,0.06408546,107940.0,107930.0,1.96884184]
[1748144362226,0.06408546,107940.0,107930.0,1.65524184]
[1748144362437,0.06408546,107940.0,107930.0,1.96884184]
[1748144365350,0.06408546,107940.0,107930.0,1.97983373]
[1748144366458,0.06408546,107940.0,107930.0,1.74310248]
[1748144366894,0.06408546,107940.0,107930.0,1.73211059]
[1748144367493,0.06408546,107940.0,107930.0,2.06467059]
[1748144373443,0.02488546,107940.0,107930.0,2.06467059]
[1748144373632,0.0392,107950.0,107930.0,2.06467059]
[1748144373918,0.0392,107950.0,107940.0,3.4190077]
[1748144374065,0.0392,107950.0,107940.0,3.416692]
[1748144375421,0.0392,107950.0,107940.0,3.42548682]
[1748144377741,0.3792,107950.0,107940.0,3.42548682]
[1748144380488,0.0381,107950.0,107940.0,3.42548682]
[1748144383096,0.0381,107950.0,107940.0,3.58960682]
[1748144387827,0.0381,107950.0,107940.0,3.92216682]
[1748144388531,0.0381,107950.0,107940.0,4.92591375]
[1748144389622,0.0381,107950.0,107940.0,4.59133144]
[1748144390134,0.0381,107950.0,107940.0,3.92216682]
[1748144390275,0.0381,107950.0,107940.0,4.59133144]
[1748144391473,0.0381,107950.0,107940.0,4.92591375]
[1748144393552,0.0381,107950.0,107940.0,3.92216682]
[1748144393885,0.0381,107950.0,107940.0,5.07371375]
[1748144398147,0.0381,107950.0,107940.0,3.75804682]
[1748144398417,0.46764556,107950.0,107940.0,4.15745844]
[1748144400791,0.46764556,107950.0,107940.0,3.48829382]
[1748144400976,0.46764556,107950.0,107940.0,4.15745844]
[1748144402341,0.46764556,107950.0,107940.0,3.48829382]
[1748144402516,0.46764556,107950.0,107940.0,4.15745844]
[1748144403306,0.46764556,107950.0,107940.0,3.84553844]
[1748144403517,0.46764556,107950.0,107940.0,4.15601844]
[1748144404101,0.46764556,107950.0,107940.0,3.48685382]
[1748144404294,0.46764556,107950.0,107940.0,4.15601844]
[1748144407896,0.48144556,107950.0,107940.0,4.15601844]
[1748144410117,0.48144556,107950.0,107940.0,3.48685382]
[1748144410327,0.48144556,107950.0,107940.0,4.15601844]
[1748144414068,0.48144556,107950.0,107940.0,4.00821844]
[1748144414216,0.48144556,107950.0,107940.0,4.15601844]
[1748144420537,0.48144556,107950.0,107940.0,3.48685382]
[1748144420685,0.48144556,107950.0,107940.0,4.15601844]
[1748144423107,0.48144556,107950.0,107940.0,3.48689382]
[1748144423403,0.48144556,107950.0,107940.0,4.15605844]
[1748144423637,0.48144556,107950.0,107940.0,4.14726362]
[1748144426957,0.48144556,107950.0,107940.0,3.478099]
[1748144427171,0.48144556,107950.0,107940.0,4.14726362]
[1748144430488,0.47744556,107950.0,107940.0,4.14726362]
[1748144431231,0.47744556,107950.0,107940.0,4.15126362]
[1748144439063,0.47744556,107950.0,107940.0,4.15122362]
[1748144454316,0.47744556,107950.0,107940.0,3.482059]
[1748144454505,0.47744556,107950.0,107940.0,4.15122362]
[1748144458628,0.47744556,107950.0,107940.0,3.334219]
[1748144458815,0.47744556,107950.0,107940.0,4.15122362]
[1748144475849,0.45834556,107950.0,107940.0,4.48580593]
[1748144476253,0.45834556,107950.0,107940.0,4.15122362]
[1748144476478,0.47684556,107950.0,107940.0,4.15122362]
[1748144479899,0.47684556,107950.0,107940.0,3.90084001]
[1748144484495,0.47684556,107950.0,107940.0,3.23167539]
[1748144484715,0.47684556,107950.0,107940.0,3.90084001]
[1748144497970,0.47684556,107950.0,107940.0,3.23167539]
[1748144498116,0.47684556,107950.0,107940.0,3.90084001]
[1748144498764,0.47684556,107950.0,107940.0,3.23167539]
[1748144498974,0.47684556,107950.0,107940.0,4.23542232]
[1748144499181,0.0288,107950.0,107940.0,4.23542232]
[1748144499352,0.0138,107950.0,107940.0,4.23542232]
[1748144500778,0.0138,107950.0,107940.0,4.00719696]
[1748144500979,0.0322,107950.0,107940.0,4.00719696]
[1748144502009,0.0184,107950.0,107940.0,4.00719696]
[1748144509142,0.0184,107950.0,107940.0,3.00345003]
[1748144509347,0.0184,107950.0,107940.0,4.00719696]
[1748144513244,0.0364,107950.0,107940.0,4.00719696]
[1748144514531,0.0184,107950.0,107940.0,4.00719696]
[1748144514743,0.0184,107950.0,107940.0,4.00683696]
[1748144521111,0.0378,107950.0,107940.0,4.00683696]
[1748144534343,0.0378,107950.0,107940.0,4.01782885]
[1748144535369,0.0378,107950.0,107940.0,4.00683696]
[1748144538364,0.0378,107950.0,107940.0,2.85529003]
[1748144538576,0.0378,107950.0,107940.0,4.00683696]
[1748144538994,0.0378,107950.0,107940.0,4.01782885]
[1748144544828,0.0378,107950.0,107940.0,3.68324654]
[1748144545720,0.0378,107950.0,107940.0,3.67225465]
[1748144549246,0.46734556,107950.0,107940.0,0.928699]
[1748144549517,0.46734556,107950.0,107940.0,1.57320131]
[1748144549948,0.46734556,107950.0,107940.0,1.90778362]
[1748144550361,0.46734556,107950.0,107940.0,1.57320131]
[1748144550565,0.46734556,107950.0,107940.0,1.90778362]
[1748144553156,0.46734556,107950.0,107940.0,1.59786362]
[1748144553358,0.46734556,107950.0,107940.0,1.90778362]
[1748144553782,0.46734556,107950.0,107940.0,1.90378362]
[1748144553983,0.46734556,107950.0,107940.0,1.59386362]
[1748144554193,0.46734556,107950.0,107940.0,1.90578362]
[1748144554524,0.46734556,107950.0,107940.0,1.90378362]
[1748144555072,0.48104556,107950.0,107940.0,1.90378362]
[1748144555726,0.48204556,107950.0,107940.0,1.90378362]
[1748144555905,0.48204556,107950.0,107940.0,1.90478362]
[1748144557822,0.48204556,107950.0,107940.0,1.57020131]
[1748144560478,0.48204556,107950.0,107940.0,1.90478362]
[1748144563916,0.48204556,107950.0,107940.0,1.68027345]
[1748144569231,0.48204556,107950.0,107940.0,1.48954568]
[1748144569765,0.48204556,107950.0,107940.0,1.31264462]
[1748144569970,0.48204556,107950.0,107940.0,5.71918062]
[1748144570359,0.48204556,107950.0,107940.0,5.61970462]
[1748144571739,0.48204556,107950.0,107940.0,5.20077862]
[1748144574872,0.48204556,107950.0,107940.0,5.14645562]
[1748144580234,0.48204556,107950.0,107940.0,5.10650662]
[1748144593683,0.48204556,107950.0,107940.0,4.88295651]
[1748144605417,0.48204556,107950.0,107940.0,4.73515651]
[1748144605637,0.48204556,107950.0,107940.0,4.88299651]
[1748144621893,0.48204556,107950.0,107940.0,4.437422]
[1748144622252,0.48204556,107950.0,107940.0,5.10658662]
[1748144629676,0.48204556,107950.0,107940.0,4.95874662]
[1748144629870,0.48204556,107950.0,107940.0,5.10658662]
[1748144631308,0.48204556,107950.0,107940.0,5.04353462]
[1748144639793,0.0331,107950.0,107940.0,5.37811693]
[1748144640029,0.0147,107950.0,107940.0,5.37811693]
[1748144640874,0.0344,107950.0,107940.0,5.37811693]
[1748144643445,0.0207,107950.0,107940.0,5.37811693]
[1748144648562,0.001,107950.0,107940.0,5.37811693]
[1748144648799,0.0191,107960.0,107940.0,5.37811693]
[1748144649032,0.02794041,107970.0,107950.0,5.42759843]
[1748144649246,0.01633451,107970.0,107960.0,5.22350062]
[1748144649678,0.01633451,107970.0,107960.0,5.55808293]
[1748144650519,0.01633451,107970.0,107960.0,5.22350062]
[1748144650935,0.01633451,107970.0,107960.0,5.2375926]
[1748144651594,0.01733451,107970.0,107960.0,5.2375926]
[1748144652187,0.03543451,107970.0,107960.0,5.2375926]
[1748144659066,0.03543451,107970.0,107960.0,5.0897926]
[1748144659261,0.12498007,107970.0,107960.0,2.9800956]
[1748144659472,0.12498007,107970.0,107960.0,3.0783346]
[1748144659676,0.46498007,107970.0,107960.0,1.11745829]
[1748144660021,0.46498007,107970.0,107960.0,1.4520406]
[1748144661061,0.47868007,107970.0,107960.0,1.4520406]
[1748144661679,0.47868007,107970.0,107960.0,1.7845606]
[1748144669005,0.47868007,107970.0,107960.0,1.44997829]
[1748144669750,0.47868007,107970.0,107960.0,1.30217829]
[1748144669963,0.47868007,107970.0,107960.0,1.7845606]
[1748144670549,0.47868007,107970.0,107960.0,1.44997829]
[1748144671090,0.47868007,107970.0,107960.0,1.30217829]
[1748144671272,0.47868007,107970.0,107960.0,1.44997829]
[1748144672542,0.47868007,107970.0,107960.0,1.30217829]
[1748144672761,0.49322092,107970.0,107960.0,0.49348]
[1748144673000,0.52096092,107970.0,107960.0,0.64128]
[1748144673225,0.34,107960.0,107940.0,0.33458231]
[1748144673442,0.12744556,107950.0,107940.0,0.33458231]
[1748144673655,0.10844556,107950.0,107940.0,4.90207831]
[1748144674537,0.10844556,107950.0,107940.0,5.06344008]
[1748144674744,0.10844556,107950.0,107940.0,5.40002239]
[1748144675148,0.10844556,107950.0,107940.0,5.19382096]
[1748144675269,0.10844556,107950.0,107940.0,5.52840327]
[1748144676066,0.10844556,107950.0,107940.0,5.52540327]
[1748144676425,0.10844556,107950.0,107940.0,5.52840327]
[1748144677710,0.10844556,107950.0,107940.0,5.86096327]
[1748144680379,0.10844556,107950.0,107940.0,5.95617577]
[1748144680692,0.10844556,107950.0,107940.0,5.9561767]
[1748144691577,0.12764556,107950.0,107940.0,5.9561767]
[1748144692736,0.10844556,107950.0,107940.0,5.9561767]
[1748144695464,0.12604556,107950.0,107940.0,5.9561767]
[1748144708852,0.10844556,107950.0,107940.0,5.9561767]
[1748144708986,0.3537,107960.0,107940.0,6.99582363]